[Event "ESP-ch Rapid 2018"]
[Site "Linares"]
[Date "2018.08.19"]
[Round "6"]
[White "Gavilan Diaz, Mario"]
[Black "Rodriguez Martin, Emilio"]
[Result "1-0"]
[ECO "D96"]
[WhiteElo "2334"]
[BlackElo "2159"]
[Annotator "NA"]
[PlyCount "83"]
[EventDate "2018.08.19"]
[EventType "team-tourn"]
[EventCountry "ESP"]
[SourceTitle "playchess.com"]
[Source "ChessBase"]
[SourceQuality "1"]
[TimeControl "900+5"]

1. d4 {[%emt 0:00:00]} d5 {[%emt 0:00:00]} 2. c4 {[%emt 0:00:00]} c6 {[%emt 0:00:00]} 3. Nf3 {[%emt 0:00:00]} Nf6 {[%emt 0:00:00]} 4. Nc3 {[%emt 0:00:01]} g6 {[%emt 0:00:01]} 5. Bf4 {[%emt 0:00:45]} Bg7 {[%emt 0:00:06]} 6. e3 {[%emt 0:00:01]} O-O {[%emt 0:00:05]} 7. Be2 {[%emt 0:00:01]} e6 {[%emt 0:01:07]} 8. O-O {[%emt 0:00:34]} Nbd7 {[%emt 0:00:06]} 9. h3 {[%emt 0:00:22]} dxc4 {[%emt 0:01:07]} 10. Bxc4 {[%emt 0:00:06]} Nb6 {[%emt 0:00:04]} 11. Be2 {[%emt 0:00:11]} Nbd5 {[%emt 0:00:05]} 12. Bh2 {[%emt 0:00:28]} Nxc3 {[%emt 0:00:09]} 13. bxc3 {[%emt 0:00:01]} Qa5 {[%emt 0:02:01]} 14. Qb3 {[%emt 0:01:28]} Rd8 {[%emt 0:00:58]} 15. Ne5 {[%emt 0:01:39]} Ne8 {[%emt 0:03:34]} 16. Nc4 {[%emt 0:01:14]} Qd5 {[%emt 0:00:36]} 17. Bf3 {[%emt 0:00:22]} Qd7 {[%emt 0:00:23]} 18. Qa3 {[%emt 0:01:23]} Nc7 {[%emt 0:00:48]} 19. Rab1 {[%emt 0:00:29]} Bf8 {[%emt 0:01:25]} 20. Qa5 {[%emt 0:02:48]} b6 {[%emt 0:00:17]} 21. Qg5 {[%emt 0:00:35]} Be7 {[%emt 0:01:21]} 22. Qg3 {[%emt 0:00:14]} Nd5 {[%emt 0:01:40]} 23. Ne5 {[%emt 0:00:02]} Qe8 {[%emt 0:00:04]} 24. c4 {[%emt 0:00:09]} Nb4 {[%emt 0:00:31]} 25. a3 {[%emt 0:01:01]} f6 {[%emt 0:00:06]} 26. axb4 {[%emt 0:00:27]} fxe5 {[%emt 0:00:01]} 27. Qxe5 {[%emt 0:00:08]} Bd6 {[%emt 0:00:02]} 28. Qe4 {[%emt 0:00:07]} Bxh2+ {[%emt 0:00:05]} 29. Kxh2 {[%emt 0:00:01]} Bd7 {[%emt 0:00:05]} 30. c5 {[%emt 0:01:02]} b5 {[%emt 0:00:05]} 31. Ra1 {[%emt 0:00:13]} Qf7 {[%emt 0:00:19]} 32. Qe5 {[%emt 0:00:17]} Qf5 {[%emt 0:00:17]} 33. Qxf5 {[%emt 0:00:09]} gxf5 {[%emt 0:00:01]} 34. Ra6 {[%emt 0:00:01]} Rdc8 {[%emt 0:00:03]} 35. Rfa1 {[%emt 0:00:13]} Rc7 {[%emt 0:00:01]} 36. R6a5 {[%emt 0:00:15]} Rb7 {[%emt 0:00:04]} 37. Ra6 {[%emt 0:00:07]} Rc7 {[%emt 0:00:01]} 38. R1a5 {[%emt 0:00:08]} Kf7 {[%emt 0:00:13]} 39. Rxb5 {[%emt 0:00:08]} cxb5 {[%emt 0:00:11]} 40. Bxa8 {[%emt 0:00:02]} Ke7 {[%emt 0:00:06]} 41. c6 {[%emt 0:00:28]} Bc8 {[%emt 0:00:02]} 42. Bb7 {[%emt 0:00:14]} 1-0

[Event "ESP-ch Rapid 2018"]
[Site "Linares"]
[Date "2018.08.19"]
[Round "6"]
[White "Calzetta Ruiz, Monica"]
[Black "Gomez Fernandez, Alfredo"]
[Result "1-0"]
[ECO "B91"]
[WhiteElo "2302"]
[BlackElo "1827"]
[Annotator "NA"]
[PlyCount "97"]
[EventDate "2018.08.19"]
[EventType "team-tourn"]
[EventCountry "ESP"]
[SourceTitle "playchess.com"]
[Source "ChessBase"]
[SourceQuality "1"]
[TimeControl "900+5"]

1. e4 {[%emt 0:00:00]} c5 {[%emt 0:00:00]} 2. Nf3 {[%emt 0:00:00]} d6 {[%emt 0:00:01]} 3. d4 {[%emt 0:00:00]} cxd4 {[%emt 0:00:02]} 4. Nxd4 {[%emt 0:00:02]} Nf6 {[%emt 0:00:02]} 5. Nc3 {[%emt 0:00:01]} a6 {[%emt 0:00:03]} 6. g3 {[%emt 0:00:04]} Nc6 {[%emt 0:00:45]} 7. Bg2 {[%emt 0:00:14]} Bd7 {[%emt 0:01:05]} 8. Nde2 {[%emt 0:00:34]} Qc7 {[%emt 0:00:25]} 9. O-O {[%emt 0:00:11]} g6 {[%emt 0:00:06]} 10. Nf4 {[%emt 0:00:22]} e6 {[%emt 0:01:44]} 11. b3 {[%emt 0:02:08]} Bg7 {[%emt 0:00:24]} 12. Ba3 {[%emt 0:00:02]} Bf8 {[%emt 0:02:11]} 13. Qd2 {[%emt 0:00:44]} b5 {[%emt 0:00:50]} 14. Bb2 {[%emt 0:00:03]} Bg7 {[%emt 0:00:50]} 15. Rad1 {[%emt 0:00:22]} Ke7 {[%emt 0:00:48]} 16. Rfe1 {[%emt 0:00:26]} b4 {[%emt 0:00:41]} 17. Ncd5+ {[%emt 0:00:59]} exd5 {[%emt 0:01:28]} 18. exd5+ {[%emt 0:00:58]} Ne5 {[%emt 0:01:25]} 19. Bxe5 {[%emt 0:00:03]} Kd8 {[%emt 0:00:32]} 20. Bd4 {[%emt 0:00:51]} Re8 {[%emt 0:01:18]} 21. Qxb4 {[%emt 0:00:15]} Rb8 {[%emt 0:00:25]} 22. Qc3 {[%emt 0:00:11]} Qxc3 {[%emt 0:00:25]} 23. Bxc3 {[%emt 0:00:02]} Nh5 {[%emt 0:00:09]} 24. Ba5+ {[%emt 0:00:23]} Kc8 {[%emt 0:00:03]} 25. Nxh5 {[%emt 0:00:02]} gxh5 {[%emt 0:00:09]} 26. c4 {[%emt 0:00:13]} Kb7 {[%emt 0:00:18]} 27. Rxe8 {[%emt 0:02:18]} Rxe8 {[%emt 0:00:03]} 28. Re1 {[%emt 0:00:01]} Rxe1+ {[%emt 0:00:24]} 29. Bxe1 {[%emt 0:00:01]} h4 {[%emt 0:00:02]} 30. gxh4 {[%emt 0:00:16]} Kb6 {[%emt 0:00:09]} 31. f4 {[%emt 0:00:32]} Kc5 {[%emt 0:00:07]} 32. Kf2 {[%emt 0:00:07]} Bd4+ {[%emt 0:00:21]} 33. Kf3 {[%emt 0:00:07]} Bg1 {[%emt 0:00:15]} 34. Bg3 {[%emt 0:00:18]} Kb4 {[%emt 0:00:11]} 35. f5 {[%emt 0:01:15]} Bc5 {[%emt 0:00:02]} 36. Kg4 {[%emt 0:00:25]} Ka3 {[%emt 0:00:01]} 37. Kg5 {[%emt 0:00:03]} Kxa2 {[%emt 0:00:04]} 38. f6 {[%emt 0:00:21]} Kxb3 {[%emt 0:00:05]} 39. Kh6 {[%emt 0:00:02]} Bf5 {[%emt 0:00:01]} 40. Kg7 {[%emt 0:00:17]} Bg6 {[%emt 0:00:18]} 41. Bf3 {[%emt 0:00:03]} a5 {[%emt 0:00:01]} 42. h5 {[%emt 0:00:02]} a4 {[%emt 0:00:01]} 43. hxg6 {[%emt 0:00:21]} a3 {[%emt 0:00:12]} 44. gxf7 {[%emt 0:00:08]} a2 {[%emt 0:00:05]} 45. f8=Q {[%emt 0:00:03]} a1=Q {[%emt 0:00:04]} 46. Qb8+ {[%emt 0:00:18]} Kxc4 {[%emt 0:00:03]} 47. Be2+ {[%emt 0:00:10]} Kxd5 {[%emt 0:00:07]} 48. Qb3+ {[%emt 0:00:23]} Ke4 {[%emt 0:00:06]} 49. Qd3# {[%emt 0:00:08] Kd5} 1-0

[Event "ESP-ch Rapid 2018"]
[Site "Linares"]
[Date "2018.08.19"]
[Round "6"]
[White "Buendia Pinar, Alvaro"]
[Black "Fernandez Garcia, Jose Miguel"]
[Result "1-0"]
[ECO "D08"]
[WhiteElo "2278"]
[BlackElo "2404"]
[Annotator "NA"]
[PlyCount "87"]
[EventDate "2018.08.19"]
[EventType "team-tourn"]
[EventCountry "ESP"]
[SourceTitle "playchess.com"]
[Source "ChessBase"]
[SourceQuality "1"]
[TimeControl "900+5"]

1. d4 {[%emt 0:00:00]} d5 {[%emt 0:00:00]} 2. c4 {[%emt 0:00:01]} e5 {[%emt 0:00:01]} 3. dxe5 {[%emt 0:00:06]} d4 {[%emt 0:00:01]} 4. Nf3 {[%emt 0:00:05]} Nc6 {[%emt 0:00:02]} 5. a3 {[%emt 0:00:03]} Nge7 {[%emt 0:00:01]} 6. b4 {[%emt 0:00:09]} Ng6 {[%emt 0:00:02]} 7. Bb2 {[%emt 0:00:07]} a5 {[%emt 0:00:01]} 8. b5 {[%emt 0:00:03]} Ncxe5 {[%emt 0:00:02]} 9. Nxe5 {[%emt 0:00:09]} Nxe5 {[%emt 0:00:01]} 10. Qxd4 {[%emt 0:00:07]} Qxd4 {[%emt 0:00:05]} 11. Bxd4 {[%emt 0:00:02]} Nxc4 {[%emt 0:00:02]} 12. e3 {[%emt 0:00:17]} Be6 {[%emt 0:00:12]} 13. Be2 {[%emt 0:01:02]} a4 {[%emt 0:01:05]} 14. O-O {[%emt 0:00:10]} f6 {[%emt 0:00:20]} 15. Rc1 {[%emt 0:00:09]} Na5 {[%emt 0:00:01]} 16. Nd2 {[%emt 0:00:46]} Bd6 {[%emt 0:03:27]} 17. Bd1 {[%emt 0:03:02]} Nb3 {[%emt 0:00:32]} 18. Nxb3 {[%emt 0:00:07]} axb3 {[%emt 0:00:01]} 19. Rcb1 {[%emt 0:00:42]} Rxa3 {[%emt 0:01:03]} 20. Rxa3 {[%emt 0:00:03]} Bxa3 {[%emt 0:00:01]} 21. Bxb3 {[%emt 0:00:02]} Bxb3 {[%emt 0:00:54]} 22. Rxb3 {[%emt 0:00:02]} Bd6 {[%emt 0:00:03]} 23. Rb1 {[%emt 0:01:18]} Kd7 {[%emt 0:00:03]} 24. Ra1 {[%emt 0:00:06]} Ke6 {[%emt 0:00:33]} 25. e4 {[%emt 0:00:53]} Be5 {[%emt 0:00:28]} 26. Bxe5 {[%emt 0:00:01]} Kxe5 {[%emt 0:00:01]} 27. Rc1 {[%emt 0:00:23]} Rc8 {[%emt 0:01:13]} 28. f3 {[%emt 0:00:07]} Kd4 {[%emt 0:03:01]} 29. Kf2 {[%emt 0:00:15]} Kd3 {[%emt 0:00:17]} 30. Rd1+ {[%emt 0:02:18]} Kc4 {[%emt 0:00:02]} 31. Rb1 {[%emt 0:00:01]} Kc5 {[%emt 0:00:07]} 32. Ke3 {[%emt 0:00:12]} Ra8 {[%emt 0:00:45]} 33. f4 {[%emt 0:00:08]} Ra3+ {[%emt 0:00:10]} 34. Ke2 {[%emt 0:00:07]} Ra5 {[%emt 0:01:07]} 35. Rc1+ {[%emt 0:00:26]} Kb6 {[%emt 0:00:01]} 36. Rd1 {[%emt 0:00:00]} Rxb5 {[%emt 0:00:57]} 37. Rd7 {[%emt 0:00:02]} Rb2+ {[%emt 0:00:40]} 38. Kf3 {[%emt 0:00:05]} Kc6 {[%emt 0:00:03]} 39. Rxg7 {[%emt 0:00:07]} b5 {[%emt 0:00:01]} 40. Rf7 {[%emt 0:00:10]} b4 {[%emt 0:00:06]} 41. Rxf6+ {[%emt 0:00:01]} Kc5 {[%emt 0:00:18]} 42. Rf7 {[%emt 0:00:42]} Kb6 {[%emt 0:00:14]} 43. Rf8 {[%emt 0:00:56]} Rb1 {[%emt 0:00:24]} 44. e5 {[%emt 0:00:32]} 1-0

[Event "ESP-ch Rapid 2018"]
[Site "Linares"]
[Date "2018.08.19"]
[Round "6"]
[White "Tudela Corbalan, Carlos"]
[Black "Roldan Marques, Daniel"]
[Result "0-1"]
[ECO "A25"]
[WhiteElo "2246"]
[BlackElo "2161"]
[Annotator "NA"]
[PlyCount "62"]
[EventDate "2018.08.19"]
[EventType "team-tourn"]
[EventCountry "ESP"]
[SourceTitle "playchess.com"]
[Source "ChessBase"]
[SourceQuality "1"]
[TimeControl "900+5"]

1. c4 {[%emt 0:00:01]} e5 {[%emt 0:00:00]} 2. Nc3 {[%emt 0:00:02]} Nc6 {[%emt 0:00:02]} 3. g3 {[%emt 0:00:02]} Bc5 {[%emt 0:00:02]} 4. Bg2 {[%emt 0:00:03]} d6 {[%emt 0:00:02]} 5. e3 {[%emt 0:00:02]} a6 {[%emt 0:00:02]} 6. Nge2 {[%emt 0:00:03]} Ba7 {[%emt 0:00:01]} 7. a3 {[%emt 0:00:03]} Bf5 {[%emt 0:00:52]} 8. d3 {[%emt 0:00:08]} Nge7 {[%emt 0:00:06]} 9. b4 {[%emt 0:00:04]} O-O {[%emt 0:00:08]} 10. Bb2 {[%emt 0:00:02]} Qd7 {[%emt 0:00:15]} 11. h3 {[%emt 0:00:05]} Rab8 {[%emt 0:00:59]} 12. Qd2 {[%emt 0:00:31]} b5 {[%emt 0:00:22]} 13. g4 {[%emt 0:00:39]} Be6 {[%emt 0:00:15]} 14. Nd5 {[%emt 0:00:12]} f5 {[%emt 0:00:33]} 15. g5 {[%emt 0:02:33]} f4 {[%emt 0:01:56]} 16. exf4 {[%emt 0:00:04]} bxc4 {[%emt 0:00:01]} 17. dxc4 {[%emt 0:00:04]} Nf5 {[%emt 0:00:02]} 18. h4 {[%emt 0:00:56]} Ncd4 {[%emt 0:00:36]} 19. Nxd4 {[%emt 0:00:15]} Nxd4 {[%emt 0:00:34]} 20. Rd1 {[%emt 0:01:00]} c6 {[%emt 0:00:14]} 21. fxe5 {[%emt 0:01:37]} Nb3 {[%emt 0:00:48]} 22. Qc3 {[%emt 0:00:19]} Bxf2+ {[%emt 0:00:14]} 23. Ke2 {[%emt 0:00:29]} Bg4+ {[%emt 0:00:22]} 24. Kd3 {[%emt 0:00:06]} Qf5+ {[%emt 0:06:22]} 25. Be4 {[%emt 0:00:17]} Be2+ {[%emt 0:00:04]} 26. Kxe2 {[%emt 0:02:01]} Qxe4+ {[%emt 0:00:02]} 27. Ne3 {[%emt 0:00:01]} Rf3 {[%emt 0:01:44]} 28. Rd3 {[%emt 0:00:29]} Bxe3 {[%emt 0:00:03]} 29. Kd1 {[%emt 0:01:41]} Bd4 {[%emt 0:00:13]} 30. Rxd4 {[%emt 0:00:36]} Nxd4 {[%emt 0:00:04]} 31. Qxd4 {[%emt 0:00:10]} Rd3+ {[%emt 0:00:03]} 0-1

[Event "ESP-ch Rapid 2018"]
[Site "Linares"]
[Date "2018.08.19"]
[Round "6"]
[White "Jimenez Martinez, Jose Vicente"]
[Black "Blanco Acevedo, Cristobal Jose"]
[Result "0-1"]
[ECO "D85"]
[WhiteElo "2243"]
[BlackElo "2336"]
[Annotator "NA"]
[PlyCount "58"]
[EventDate "2018.08.19"]
[EventType "team-tourn"]
[EventCountry "ESP"]
[SourceTitle "playchess.com"]
[Source "ChessBase"]
[SourceQuality "1"]
[TimeControl "900+5"]

1. d4 {[%emt 0:00:00]} Nf6 {[%emt 0:00:00]} 2. c4 {[%emt 0:00:00]} g6 {[%emt 0:00:07]} 3. Nc3 {[%emt 0:00:00]} d5 {[%emt 0:00:04]} 4. cxd5 {[%emt 0:00:02]} Nxd5 {[%emt 0:00:01]} 5. e4 {[%emt 0:00:01]} Nxc3 {[%emt 0:00:04]} 6. bxc3 {[%emt 0:00:02]} Bg7 {[%emt 0:00:01]} 7. Be3 {[%emt 0:00:02]} O-O {[%emt 0:00:07]} 8. Qd2 {[%emt 0:00:01]} Re8 {[%emt 0:00:39]} 9. h4 {[%emt 0:00:14]} e5 {[%emt 0:00:14]} 10. d5 {[%emt 0:00:31]} f5 {[%emt 0:00:29]} 11. f3 {[%emt 0:00:54]} b6 {[%emt 0:00:46]} 12. Bd3 {[%emt 0:02:41]} Na6 {[%emt 0:01:46]} 13. Bb5 {[%emt 0:00:51]} Rf8 {[%emt 0:00:11]} 14. Rb1 {[%emt 0:02:44]} Qd6 {[%emt 0:00:18]} 15. Qe2 {[%emt 0:01:18]} Nc5 {[%emt 0:00:12]} 16. Qc4 {[%emt 0:00:26]} Rb8 {[%emt 0:01:56]} 17. h5 {[%emt 0:00:43]} gxh5 {[%emt 0:02:09]} 18. Rxh5 {[%emt 0:01:05]} h6 {[%emt 0:00:52]} 19. Ne2 {[%emt 0:00:26]} Qg6 {[%emt 0:00:40]} 20. Rh4 {[%emt 0:02:32]} fxe4 {[%emt 0:00:48]} 21. fxe4 {[%emt 0:00:12]} Qxg2 {[%emt 0:01:55]} 22. Kd2 {[%emt 0:00:01]} Bg4 {[%emt 0:00:22]} 23. Bxc5 {[%emt 0:01:00]} bxc5 {[%emt 0:00:55]} 24. Rg1 {[%emt 0:00:02]} Bxe2 {[%emt 0:00:48]} 25. Rxg2 {[%emt 0:00:45]} Bxc4 {[%emt 0:00:03]} 26. Rhg4 {[%emt 0:00:13]} Rxb5 {[%emt 0:00:14]} 27. Rxg7+ {[%emt 0:00:03]} Kh8 {[%emt 0:00:01]} 28. Kc2 {[%emt 0:00:19]} Ra5 {[%emt 0:00:07]} 29. Kb1 {[%emt 0:00:10]} Rf1+ {[%emt 0:00:12]} 0-1

[Event "ESP-ch Rapid 2018"]
[Site "Linares"]
[Date "2018.08.19"]
[Round "6"]
[White "Orantes Taboada, Francisco"]
[Black "Iglesias Leon, Francisco J"]
[Result "1/2-1/2"]
[ECO "C41"]
[WhiteElo "2242"]
[BlackElo "2129"]
[Annotator "NA"]
[PlyCount "117"]
[EventDate "2018.08.19"]
[EventType "team-tourn"]
[EventCountry "ESP"]
[SourceTitle "playchess.com"]
[Source "ChessBase"]
[SourceQuality "1"]
[TimeControl "900+5"]

1. e4 {[%emt 0:00:00]} d6 {[%emt 0:00:00]} 2. d4 {[%emt 0:00:00]} Nf6 {[%emt 0:00:00]} 3. Nc3 {[%emt 0:00:01]} e5 {[%emt 0:00:00]} 4. Nf3 {[%emt 0:00:06]} Nbd7 {[%emt 0:00:00]} 5. dxe5 {[%emt 0:00:03]} dxe5 {[%emt 0:00:01]} 6. Bc4 {[%emt 0:00:02]} Be7 {[%emt 0:00:01]} 7. O-O {[%emt 0:00:02]} O-O {[%emt 0:00:02]} 8. a4 {[%emt 0:00:02]} b6 {[%emt 0:00:04]} 9. Nd5 {[%emt 0:00:18]} Bb7 {[%emt 0:00:10]} 10. Nxe7+ {[%emt 0:01:00]} Qxe7 {[%emt 0:00:02]} 11. Bg5 {[%emt 0:00:02]} Bxe4 {[%emt 0:00:07]} 12. Re1 {[%emt 0:00:13]} Qc5 {[%emt 0:00:07]} 13. Bb3 {[%emt 0:00:07]} h6 {[%emt 0:00:10]} 14. Bh4 {[%emt 0:00:32]} Rad8 {[%emt 0:00:11]} 15. Qe2 {[%emt 0:00:31]} Bxf3 {[%emt 0:00:41]} 16. Qxf3 {[%emt 0:00:02]} e4 {[%emt 0:00:01]} 17. Qe2 {[%emt 0:00:29]} Qe5 {[%emt 0:00:10]} 18. a5 {[%emt 0:02:55]} Qxb2 {[%emt 0:00:22]} 19. axb6 {[%emt 0:00:59]} axb6 {[%emt 0:00:02]} 20. Bg3 {[%emt 0:00:02]} Qc3 {[%emt 0:00:59]} 21. Ra3 {[%emt 0:00:40]} Qc5 {[%emt 0:00:10]} 22. Ra4 {[%emt 0:01:37]} b5 {[%emt 0:00:08]} 23. Ra5 {[%emt 0:00:24]} c6 {[%emt 0:00:05]} 24. Rea1 {[%emt 0:00:05]} Nb6 {[%emt 0:01:25]} 25. h3 {[%emt 0:00:48]} Nbd5 {[%emt 0:00:15]} 26. c4 {[%emt 0:00:06]} Nc3 {[%emt 0:00:12]} 27. Qc2 {[%emt 0:00:32]} Qd4 {[%emt 0:00:11]} 28. Rc1 {[%emt 0:00:52]} b4 {[%emt 0:00:32]} 29. Be5 {[%emt 0:02:41]} Qb6 {[%emt 0:00:02]} 30. Bxc3 {[%emt 0:00:25]} Qxa5 {[%emt 0:00:09]} 31. Bxf6 {[%emt 0:00:01]} gxf6 {[%emt 0:00:02]} 32. Qxe4 {[%emt 0:00:21]} Qg5 {[%emt 0:00:07]} 33. Ra1 {[%emt 0:00:27]} Qe5 {[%emt 0:00:27]} 34. Qg4+ {[%emt 0:00:06]} Kh8 {[%emt 0:00:12]} 35. Rb1 {[%emt 0:00:32]} Rg8 {[%emt 0:00:08]} 36. Qf3 {[%emt 0:00:09]} c5 {[%emt 0:00:31]} 37. Bc2 {[%emt 0:00:01]} Rd2 {[%emt 0:00:15]} 38. Bf5 {[%emt 0:00:27]} Rg5 {[%emt 0:00:32]} 39. Be4 {[%emt 0:00:07]} Rd4 {[%emt 0:01:53]} 40. Bc2 {[%emt 0:00:15]} Rxc4 {[%emt 0:00:43]} 41. Qd3 {[%emt 0:00:00]} Rxc2 {[%emt 0:00:11]} 42. Qxc2 {[%emt 0:00:01]} Qd5 {[%emt 0:00:07]} 43. g3 {[%emt 0:00:06]} Qd4 {[%emt 0:00:05]} 44. Kh2 {[%emt 0:00:16]} Rd5 {[%emt 0:00:19]} 45. Qe2 {[%emt 0:00:02]} Re5 {[%emt 0:00:17]} 46. Qf3 {[%emt 0:00:04]} Qe4 {[%emt 0:00:07]} 47. Qxf6+ {[%emt 0:00:02]} Kg8 {[%emt 0:00:01]} 48. Rd1 {[%emt 0:00:03]} Re8 {[%emt 0:00:44]} 49. Rd6 {[%emt 0:00:08]} b3 {[%emt 0:00:18]} 50. Rb6 {[%emt 0:00:07]} c4 {[%emt 0:00:02]} 51. Qxh6 {[%emt 0:00:07]} Qf5 {[%emt 0:00:16]} 52. Rf6 {[%emt 0:00:03]} Qe5 {[%emt 0:00:20]} 53. Rf4 {[%emt 0:00:07]} Re6 {[%emt 0:01:08]} 54. Rg4+ {[%emt 0:00:08]} Rg6 {[%emt 0:00:03]} 55. Rxg6+ {[%emt 0:00:02]} fxg6 {[%emt 0:00:00]} 56. Qxg6+ {[%emt 0:00:01]} Qg7 {[%emt 0:00:19]} 57. Qe8+ {[%emt 0:00:06]} Qf8 {[%emt 0:00:02]} 58. Qg6+ {[%emt 0:00:02]} Qg7 {[%emt 0:00:19]} 59. Qe8+ {[%emt 0:00:01] Qf7 [%clk 0:04:14] Qe6 [%clk 0:00:33] Kf8 [%clk 0:04:17] Qc8+ [%clk 0:00:36] Ke7 [%clk 0:04:19] Qc7+ [%clk 0:00:40] Kf6 [%clk 0:04:21] Qf4+ [%clk 0:00:42] Ke7 [%clk 0:04:25] Qc7+ [%clk 0:00:45] Kf8 [%clk 0:04:28] Qd8+ [%clk 0:00:42] Kg7 [%clk 0:04:31] Qd4+ [%clk 0:00:44] Qf6 [%clk 0:04:20] Qg4+ [%clk 0:00:47] Kf8 [%clk 0:04:22] Qc8+ [%clk 0:00:51] Kg7 [%clk 0:04:26] Qg4+ [%clk 0:00:54] Kf8 Qc8+} 1/2-1/2

[Event "ESP-ch Rapid 2018"]
[Site "Linares"]
[Date "2018.08.19"]
[Round "6"]
[White "Blazquez Gomez, Juan Carlos"]
[Black "Redondo Flores, David"]
[Result "0-1"]
[ECO "B20"]
[WhiteElo "2240"]
[BlackElo "1971"]
[Annotator "NA"]
[PlyCount "54"]
[EventDate "2018.08.19"]
[EventType "team-tourn"]
[EventCountry "ESP"]
[SourceTitle "playchess.com"]
[Source "ChessBase"]
[SourceQuality "1"]
[TimeControl "900+5"]

1. e4 {[%emt 0:00:00]} c5 {[%emt 0:00:00]} 2. a3 {[%emt 0:00:03]} e6 {[%emt 0:00:30]} 3. b4 {[%emt 0:00:02]} d5 {[%emt 0:00:23]} 4. exd5 {[%emt 0:01:29]} exd5 {[%emt 0:00:03]} 5. Bb5+ {[%emt 0:00:16]} Nc6 {[%emt 0:00:06]} 6. Qe2+ {[%emt 0:00:45]} Be6 {[%emt 0:01:22]} 7. Nf3 {[%emt 0:00:47]} a6 {[%emt 0:00:45]} 8. Bxc6+ {[%emt 0:00:28]} bxc6 {[%emt 0:00:01]} 9. Bb2 {[%emt 0:00:26]} Nf6 {[%emt 0:02:15]} 10. O-O {[%emt 0:01:46]} h6 {[%emt 0:00:03]} 11. bxc5 {[%emt 0:00:35]} Bxc5 {[%emt 0:00:20]} 12. Nd4 {[%emt 0:02:25]} Bxd4 {[%emt 0:02:10]} 13. Bxd4 {[%emt 0:00:03]} O-O {[%emt 0:00:04]} 14. Nc3 {[%emt 0:03:38]} Bf5 {[%emt 0:00:11]} 15. d3 {[%emt 0:00:33]} Re8 {[%emt 0:00:02]} 16. Qf3 {[%emt 0:00:14]} Bg6 {[%emt 0:01:29]} 17. Na4 {[%emt 0:00:30]} Nd7 {[%emt 0:00:19]} 18. Bc3 {[%emt 0:01:37]} Qh4 {[%emt 0:00:17]} 19. g4 {[%emt 0:00:28]} Ne5 {[%emt 0:00:20]} 20. Bxe5 {[%emt 0:00:06]} Rxe5 {[%emt 0:00:02]} 21. Qg3 {[%emt 0:00:18]} Qe7 {[%emt 0:00:32]} 22. f4 {[%emt 0:00:09]} Re3 {[%emt 0:00:22]} 23. Qg2 {[%emt 0:00:02]} Re8 {[%emt 0:00:54]} 24. f5 {[%emt 0:00:02]} Bh7 {[%emt 0:00:08]} 25. Rf2 {[%emt 0:00:01]} Re1+ {[%emt 0:00:13]} 26. Rxe1 {[%emt 0:00:15]} Qxe1+ {[%emt 0:00:01]} 27. Rf1 {[%emt 0:00:01]} Qa5 {[%emt 0:00:17]} 0-1

[Event "ESP-ch Rapid 2018"]
[Site "Linares"]
[Date "2018.08.19"]
[Round "6"]
[White "Garcia Romero, Benjamin Abel"]
[Black "Collado Barbas, Laura"]
[Result "1-0"]
[ECO "C06"]
[WhiteElo "2230"]
[BlackElo "2095"]
[Annotator "NA"]
[PlyCount "71"]
[EventDate "2018.08.19"]
[EventType "team-tourn"]
[EventCountry "ESP"]
[SourceTitle "playchess.com"]
[Source "ChessBase"]
[SourceQuality "1"]
[TimeControl "900+5"]

1. e4 {[%emt 0:00:00]} e6 {[%emt 0:00:00]} 2. d4 {[%emt 0:00:00]} d5 {[%emt 0:00:00]} 3. Nd2 {[%emt 0:00:03]} Nf6 {[%emt 0:00:00]} 4. e5 {[%emt 0:00:02]} Nfd7 {[%emt 0:00:01]} 5. Bd3 {[%emt 0:00:02]} c5 {[%emt 0:00:02]} 6. c3 {[%emt 0:00:01]} Nc6 {[%emt 0:00:02]} 7. Ne2 {[%emt 0:00:03]} cxd4 {[%emt 0:00:03]} 8. cxd4 {[%emt 0:00:01]} f6 {[%emt 0:00:02]} 9. exf6 {[%emt 0:00:04]} Nxf6 {[%emt 0:00:02]} 10. Nf3 {[%emt 0:00:07]} Bd6 {[%emt 0:00:03]} 11. O-O {[%emt 0:00:05]} O-O {[%emt 0:00:03]} 12. Bf4 {[%emt 0:00:14]} Bxf4 {[%emt 0:00:06]} 13. Nxf4 {[%emt 0:00:01]} Ne4 {[%emt 0:00:02]} 14. g3 {[%emt 0:00:38]} Qe8 {[%emt 0:01:09]} 15. Bb5 {[%emt 0:00:31]} g5 {[%emt 0:01:12]} 16. Nd3 {[%emt 0:02:41]} Qh5 {[%emt 0:01:54]} 17. Bxc6 {[%emt 0:00:23]} Rxf3 {[%emt 0:00:48]} 18. Ne5 {[%emt 0:00:09]} g4 {[%emt 0:00:16]} 19. Bb5 {[%emt 0:01:00]} Ng5 {[%emt 0:00:32]} 20. Be2 {[%emt 0:01:18]} Nh3+ {[%emt 0:00:21]} 21. Kg2 {[%emt 0:00:16]} Nxf2 {[%emt 0:05:31]} 22. Rxf2 {[%emt 0:00:31]} Rxf2+ {[%emt 0:00:09]} 23. Kxf2 {[%emt 0:00:02]} Qxh2+ {[%emt 0:00:08]} 24. Ke3 {[%emt 0:00:45]} Qxg3+ {[%emt 0:00:12]} 25. Kd2 {[%emt 0:00:04]} Qf4+ {[%emt 0:00:31]} 26. Kc3 {[%emt 0:00:08]} b5 {[%emt 0:03:06]} 27. Kb3 {[%emt 0:00:15]} a5 {[%emt 0:00:24]} 28. a3 {[%emt 0:00:05]} Ba6 {[%emt 0:00:08]} 29. Qc1 {[%emt 0:01:22]} Qg3+ {[%emt 0:00:18]} 30. Ka2 {[%emt 0:00:06]} Qh4 {[%emt 0:00:14]} 31. Qc6 {[%emt 0:00:22]} Rf8 {[%emt 0:00:07]} 32. Qxe6+ {[%emt 0:00:12]} Kg7 {[%emt 0:00:00]} 33. Rg1 {[%emt 0:00:41]} g3 {[%emt 0:00:06]} 34. Qxa6 {[%emt 0:00:23]} Qxd4 {[%emt 0:00:05]} 35. Rxg3+ {[%emt 0:00:02]} Kh8 {[%emt 0:00:01]} 36. Nf7+ {[%emt 0:00:03]} 1-0

[Event "ESP-ch Rapid 2018"]
[Site "Linares"]
[Date "2018.08.19"]
[Round "6"]
[White "Beltran De Heredia E, Miguel"]
[Black "Gomez Gandolfo, Ruben"]
[Result "1-0"]
[ECO "B89"]
[WhiteElo "2229"]
[BlackElo "1855"]
[Annotator "NA"]
[PlyCount "57"]
[EventDate "2018.08.19"]
[EventType "team-tourn"]
[EventCountry "ESP"]
[SourceTitle "playchess.com"]
[Source "ChessBase"]
[SourceQuality "1"]
[TimeControl "900+5"]

1. e4 {[%emt 0:00:00]} c5 {[%emt 0:00:00]} 2. Nf3 {[%emt 0:00:00]} Nc6 {[%emt 0:00:00]} 3. Nc3 {[%emt 0:00:00]} d6 {[%emt 0:00:01]} 4. d4 {[%emt 0:00:01]} cxd4 {[%emt 0:00:02]} 5. Nxd4 {[%emt 0:00:01]} Nf6 {[%emt 0:00:01]} 6. Be3 {[%emt 0:00:03]} e6 {[%emt 0:00:05]} 7. Bc4 {[%emt 0:00:04]} Be7 {[%emt 0:00:03]} 8. Qe2 {[%emt 0:00:03]} O-O {[%emt 0:00:07]} 9. Bb3 {[%emt 0:00:05]} a6 {[%emt 0:00:13]} 10. O-O-O {[%emt 0:00:06]} Qc7 {[%emt 0:01:32]} 11. Rhg1 {[%emt 0:00:12]} b5 {[%emt 0:00:06]} 12. g4 {[%emt 0:00:17]} b4 {[%emt 0:00:22]} 13. Nxc6 {[%emt 0:00:03]} Qxc6 {[%emt 0:00:29]} 14. Nd5 {[%emt 0:00:02]} Nxd5 {[%emt 0:00:31]} 15. exd5 {[%emt 0:00:02]} Qd7 {[%emt 0:01:48]} 16. f4 {[%emt 0:01:43]} a5 {[%emt 0:00:10]} 17. dxe6 {[%emt 0:00:12]} fxe6 {[%emt 0:00:03]} 18. f5 {[%emt 0:00:03]} Ba6 {[%emt 0:02:56]} 19. Qg2 {[%emt 0:00:02]} Kh8 {[%emt 0:00:14]} 20. Bxe6 {[%emt 0:00:08]} Qc7 {[%emt 0:00:26]} 21. g5 {[%emt 0:00:38]} Bc4 {[%emt 0:00:44]} 22. Bxc4 {[%emt 0:02:35]} Qxc4 {[%emt 0:00:02]} 23. f6 {[%emt 0:00:02]} gxf6 {[%emt 0:00:32]} 24. g6 {[%emt 0:00:15]} Rfc8 {[%emt 0:01:42]} 25. Kb1 {[%emt 0:02:45]} Qe6 {[%emt 0:01:05]} 26. Bh6 {[%emt 0:01:01]} Qf5 {[%emt 0:00:50]} 27. gxh7 {[%emt 0:00:25]} Qxh7 {[%emt 0:00:36]} 28. Bg7+ {[%emt 0:00:02]} Kg8 {[%emt 0:00:02]} 29. Qd5# 1-0